[Event "Titled Tuesday Blitz June 6 Early 2023"]
[White "Maluco_do_Natal_00"]
[Black "Ai, Evan"]
[BlackFideId "2094770"]
[WhiteElo "2070"]
[BlackElo "1963"]
[Result "0-1"]
[Round "3"]
[TimeControl "180+2"]
[Date "2023.06.06"]
[WhiteClock "0:00:01"]
[BlackClock "0:00:59"]
[Board "203"]

1. e4 {[%clk 0:02:58]}  e5 {[%clk 0:02:58]} 2. Nf3 {[%clk 0:02:58]}  Nc6 {[%clk 0:02:54]} 3. Bb5 {[%clk 0:02:59]}  a6 {[%clk 0:02:54]} 4. Ba4 {[%clk 0:02:59]}  Nf6 {[%clk 0:02:54]} 5. O-O {[%clk 0:02:58]}  b5 {[%clk 0:02:54]} 6. Bb3 {[%clk 0:02:57]}  Be7 {[%clk 0:02:54]} 7. Re1 {[%clk 0:02:55]}  O-O {[%clk 0:02:55]} 8. a4 {[%clk 0:02:54]}  Bb7 {[%clk 0:02:54]} 9. c3 {[%clk 0:02:48]}  d5 {[%clk 0:02:52]} 10. axb5 {[%clk 0:02:33]}  axb5 {[%clk 0:02:51]} 11. Rxa8 {[%clk 0:02:32]}  Bxa8 {[%clk 0:02:46]} 12. exd5 {[%clk 0:02:32]}  Nxd5 {[%clk 0:02:46]} 13. Nxe5 {[%clk 0:02:30]}  Nxe5 {[%clk 0:02:37]} 14. Rxe5 {[%clk 0:02:29]}  Nf4 {[%clk 0:02:37]} 15. d4 {[%clk 0:01:39]}  Nxg2 {[%clk 0:02:02]} 16. Qg4 {[%clk 0:00:15]}  Nh4 {[%clk 0:01:39]} 17. Bd1 {[%clk 0:00:12]}  Bf6 {[%clk 0:01:37]} 18. Re1 {[%clk 0:00:11]}  Qd5 {[%clk 0:01:32]} 19. f3 {[%clk 0:00:09]}  Nxf3+ {[%clk 0:01:07]} 20. Bxf3 {[%clk 0:00:08]}  Qxf3 {[%clk 0:01:08]} 21. Qxf3 {[%clk 0:00:09]}  Bxf3 {[%clk 0:01:09]} 22. Bf4 {[%clk 0:00:08]}  c6 {[%clk 0:01:08]} 23. Nd2 {[%clk 0:00:07]}  Bd5 {[%clk 0:01:09]} 24. Ne4 {[%clk 0:00:04]}  Be7 {[%clk 0:01:06]} 25. Nd6 {[%clk 0:00:03]}  Be6 {[%clk 0:01:03]} 26. Ne4 {[%clk 0:00:01]}  Rd8 {[%clk 0:01:01]} 27. Ng3 {[%clk 0:00:01]}  c5 {[%clk 0:00:59]} 0-1


[Site "https://www.chess.com"]

[Event "Titled Tuesday Blitz June 6 Early 2023"]
[White "Rian, Kapriaga"]
[Black "Alexanian, Nelli"]
[WhiteFideId "7103263"]
[BlackFideId "4170539"]
[WhiteElo "2317"]
[BlackElo "2047"]
[Result "1-0"]
[Round "3"]
[TimeControl "180+2"]
[Date "2023.06.06"]
[WhiteClock "0:01:13"]
[BlackClock "0:00:02"]
[Board "205"]

1. d4 {[%clk 0:03:00]}  Nf6 {[%clk 0:02:59]} 2. c4 {[%clk 0:03:01]}  c5 {[%clk 0:02:56]} 3. d5 {[%clk 0:03:00]}  b5 {[%clk 0:02:56]} 4. Qc2 {[%clk 0:02:59]}  Na6 {[%clk 0:02:48]} 5. a3 {[%clk 0:02:56]}  bxc4 {[%clk 0:02:44]} 6. e4 {[%clk 0:02:55]}  e6 {[%clk 0:02:37]} 7. Bxc4 {[%clk 0:02:54]}  Qa5+ {[%clk 0:02:22]} 8. Nc3 {[%clk 0:02:51]}  Bd6 {[%clk 0:02:04]} 9. Nf3 {[%clk 0:02:48]}  O-O {[%clk 0:01:51]} 10. O-O {[%clk 0:02:47]}  Re8 {[%clk 0:01:42]} 11. dxe6 {[%clk 0:02:42]}  fxe6 {[%clk 0:01:22]} 12. e5 {[%clk 0:02:41]}  Bxe5 {[%clk 0:00:56]} 13. Nxe5 {[%clk 0:02:40]}  d5 {[%clk 0:00:56]} 14. Bb5 {[%clk 0:02:36]}  Rf8 {[%clk 0:00:50]} 15. Bg5 {[%clk 0:02:31]}  d4 {[%clk 0:00:39]} 16. Bxa6 {[%clk 0:02:27]}  Bxa6 {[%clk 0:00:35]} 17. Ne4 {[%clk 0:02:15]}  Bxf1 {[%clk 0:00:28]} 18. Rxf1 {[%clk 0:02:05]}  c4 {[%clk 0:00:27]} 19. Bxf6 {[%clk 0:02:00]}  gxf6 {[%clk 0:00:18]} 20. Nxc4 {[%clk 0:01:57]}  Qd5 {[%clk 0:00:17]} 21. Qd3 {[%clk 0:01:46]}  Rac8 {[%clk 0:00:17]} 22. b3 {[%clk 0:01:44]}  f5 {[%clk 0:00:16]} 23. Ng5 {[%clk 0:01:40]}  Rf6 {[%clk 0:00:16]} 24. f4 {[%clk 0:01:38]}  Rg6 {[%clk 0:00:15]} 25. Rf2 {[%clk 0:01:36]}  h6 {[%clk 0:00:14]} 26. Nf3 {[%clk 0:01:34]}  Kh7 {[%clk 0:00:13]} 27. Nfe5 {[%clk 0:01:34]}  Rg7 {[%clk 0:00:13]} 28. g3 {[%clk 0:01:34]}  h5 {[%clk 0:00:12]} 29. Rd2 {[%clk 0:01:29]}  Rcg8 {[%clk 0:00:09]} 30. Qxd4 {[%clk 0:01:22]}  Rxg3+ {[%clk 0:00:09]} 31. hxg3 {[%clk 0:01:23]}  Rxg3+ {[%clk 0:00:08]} 32. Kf1 {[%clk 0:01:23]}  Qh1+ {[%clk 0:00:07]} 33. Ke2 {[%clk 0:01:20]}  Qh2+ {[%clk 0:00:06]} 34. Kd1 {[%clk 0:01:19]}  Rg1+ {[%clk 0:00:04]} 35. Kc2 {[%clk 0:01:19]}  Qg3 {[%clk 0:00:02]} 36. a4 {[%clk 0:01:13]} 1-0


[Site "https://www.chess.com"]

[Event "Titled Tuesday Blitz June 6 Early 2023"]
[White "White, John S."]
[Black "Buscar, Michael"]
[WhiteFideId "2502348"]
[BlackFideId "2603616"]
[WhiteElo "1979"]
[BlackElo "2010"]
[Result "0-1"]
[Round "3"]
[TimeControl "180+2"]
[Date "2023.06.06"]
[WhiteClock "0:00:03"]
[BlackClock "0:00:21"]
[Board "206"]

1. e4 {[%clk 0:03:00]}  c5 {[%clk 0:02:58]} 2. Nf3 {[%clk 0:03:00]}  Nc6 {[%clk 0:02:58]} 3. d4 {[%clk 0:03:01]}  cxd4 {[%clk 0:02:59]} 4. Nxd4 {[%clk 0:03:02]}  Nf6 {[%clk 0:02:59]} 5. Nc3 {[%clk 0:03:02]}  e5 {[%clk 0:03:00]} 6. Ndb5 {[%clk 0:03:01]}  h6 {[%clk 0:03:00]} 7. Nd6+ {[%clk 0:03:01]}  Bxd6 {[%clk 0:03:00]} 8. Qxd6 {[%clk 0:03:01]}  Qe7 {[%clk 0:03:00]} 9. Qxe7+ {[%clk 0:03:00]}  Kxe7 {[%clk 0:03:01]} 10. Bd3 {[%clk 0:02:51]}  Nb4 {[%clk 0:02:54]} 11. Be3 {[%clk 0:02:42]}  Nxd3+ {[%clk 0:02:52]} 12. cxd3 {[%clk 0:02:42]}  Rd8 {[%clk 0:02:51]} 13. Bc5+ {[%clk 0:02:34]}  d6 {[%clk 0:02:51]} 14. Ba3 {[%clk 0:02:34]}  Be6 {[%clk 0:02:51]} 15. O-O {[%clk 0:02:33]}  a6 {[%clk 0:02:44]} 16. Rac1 {[%clk 0:02:26]}  Rac8 {[%clk 0:02:44]} 17. b3 {[%clk 0:02:13]}  Rc6 {[%clk 0:02:41]} 18. Ne2 {[%clk 0:02:03]}  Rdc8 {[%clk 0:02:38]} 19. Rxc6 {[%clk 0:02:02]}  bxc6 {[%clk 0:02:38]} 20. Rc1 {[%clk 0:02:02]}  c5 {[%clk 0:02:38]} 21. Nc3 {[%clk 0:01:57]}  Ra8 {[%clk 0:02:27]} 22. b4 {[%clk 0:01:53]}  c4 {[%clk 0:02:18]} 23. Nd5+ {[%clk 0:01:45]}  Bxd5 {[%clk 0:02:04]} 24. exd5 {[%clk 0:01:43]}  cxd3 {[%clk 0:01:58]} 25. Rd1 {[%clk 0:01:26]}  Nxd5 {[%clk 0:01:42]} 26. Rxd3 {[%clk 0:01:26]}  Nf4 {[%clk 0:01:34]} 27. Rd2 {[%clk 0:01:22]}  Rc8 {[%clk 0:01:24]} 28. b5 {[%clk 0:01:21]}  axb5 {[%clk 0:01:22]} 29. Rxd6 {[%clk 0:01:17]}  Rc1+ {[%clk 0:01:19]} 30. Bxc1 {[%clk 0:01:16]}  Kxd6 {[%clk 0:01:19]} 31. Kf1 {[%clk 0:01:06]}  Kd5 {[%clk 0:01:14]} 32. Bxf4 {[%clk 0:00:59]}  exf4 {[%clk 0:01:15]} 33. Ke2 {[%clk 0:00:59]}  Kd4 {[%clk 0:01:12]} 34. Kd2 {[%clk 0:00:58]}  f5 {[%clk 0:01:10]} 35. h4 {[%clk 0:00:47]}  g6 {[%clk 0:01:05]} 36. Kc2 {[%clk 0:00:43]}  Ke4 {[%clk 0:00:52]} 37. Kb3 {[%clk 0:00:37]}  Kd5 {[%clk 0:00:44]} 38. Kb4 {[%clk 0:00:37]}  Kc6 {[%clk 0:00:44]} 39. a3 {[%clk 0:00:33]}  Kb6 {[%clk 0:00:44]} 40. a4 {[%clk 0:00:26]}  bxa4 {[%clk 0:00:43]} 41. Kxa4 {[%clk 0:00:26]}  Kc5 {[%clk 0:00:43]} 42. Kb3 {[%clk 0:00:27]}  Kd4 {[%clk 0:00:44]} 43. Kc2 {[%clk 0:00:28]}  Ke4 {[%clk 0:00:43]} 44. Kd2 {[%clk 0:00:28]}  f3 {[%clk 0:00:43]} 45. g3 {[%clk 0:00:25]}  g5 {[%clk 0:00:39]} 46. hxg5 {[%clk 0:00:23]}  hxg5 {[%clk 0:00:39]} 47. Ke1 {[%clk 0:00:23]}  Kd3 {[%clk 0:00:39]} 48. Kd1 {[%clk 0:00:21]}  Kc3 {[%clk 0:00:35]} 49. Kc1 {[%clk 0:00:20]}  g4 {[%clk 0:00:33]} 50. Kd1 {[%clk 0:00:20]}  Kd3 {[%clk 0:00:33]} 51. Ke1 {[%clk 0:00:19]}  Ke4 {[%clk 0:00:33]} 52. Kd2 {[%clk 0:00:19]}  f4 {[%clk 0:00:34]} 53. gxf4 {[%clk 0:00:17]}  Kxf4 {[%clk 0:00:34]} 54. Ke1 {[%clk 0:00:17]}  g3 {[%clk 0:00:31]} 55. Kf1 {[%clk 0:00:14]}  g2+ {[%clk 0:00:27]} 56. Kg1 {[%clk 0:00:14]}  Ke4 {[%clk 0:00:27]} 57. Kh2 {[%clk 0:00:14]}  Kd3 {[%clk 0:00:28]} 58. Kg1 {[%clk 0:00:13]}  Ke2 {[%clk 0:00:28]} 59. Kh2 {[%clk 0:00:11]}  Kxf2 {[%clk 0:00:28]} 60. Kh3 {[%clk 0:00:09]}  g1=Q {[%clk 0:00:20]} 61. Kh4 {[%clk 0:00:07]}  Qg3+ {[%clk 0:00:20]} 62. Kh5 {[%clk 0:00:07]}  Kg2 {[%clk 0:00:20]} 63. Kh6 {[%clk 0:00:06]}  f2 {[%clk 0:00:20]} 64. Kh7 {[%clk 0:00:05]}  f1=Q {[%clk 0:00:21]} 65. Kh8 {[%clk 0:00:03]}  Qh1# {[%clk 0:00:21]} 0-1


[Site "https://www.chess.com"]

[Event "Titled Tuesday Blitz June 6 Early 2023"]
[White "Nihal Sarin"]
[Black "Talibov, Shiroghlan"]
[WhiteFideId "25092340"]
[BlackFideId "13429078"]
[WhiteElo "2689"]
[BlackElo "2274"]
[Result "1-0"]
[Round "4"]
[TimeControl "180+2"]
[Date "2023.06.06"]
[WhiteClock "0:00:41"]
[BlackClock "0:00:43"]
[Board "1"]

1. e4 {[%clk 0:02:54]}  c6 {[%clk 0:02:56]} 2. Nf3 {[%clk 0:02:49]}  d5 {[%clk 0:02:56]} 3. d3 {[%clk 0:02:50]}  g6 {[%clk 0:02:47]} 4. e5 {[%clk 0:02:42]}  c5 {[%clk 0:02:46]} 5. d4 {[%clk 0:02:31]}  cxd4 {[%clk 0:02:45]} 6. Qxd4 {[%clk 0:02:22]}  Nc6 {[%clk 0:02:39]} 7. Bb5 {[%clk 0:02:19]}  Bd7 {[%clk 0:02:28]} 8. Qxd5 {[%clk 0:02:10]}  e6 {[%clk 0:02:21]} 9. Qe4 {[%clk 0:02:02]}  Bg7 {[%clk 0:02:17]} 10. Nc3 {[%clk 0:01:57]}  Nge7 {[%clk 0:02:17]} 11. Bg5 {[%clk 0:01:46]}  a6 {[%clk 0:01:59]} 12. Ba4 {[%clk 0:01:17]}  h6 {[%clk 0:01:44]} 13. Bf6 {[%clk 0:01:17]}  O-O {[%clk 0:01:19]} 14. O-O-O {[%clk 0:01:12]}  b5 {[%clk 0:01:17]} 15. Bb3 {[%clk 0:01:12]}  Ra7 {[%clk 0:01:10]} 16. h4 {[%clk 0:01:09]}  h5 {[%clk 0:00:57]} 17. g4 {[%clk 0:00:55]}  hxg4 {[%clk 0:00:53]} 18. Qxg4 {[%clk 0:00:56]}  Bxf6 {[%clk 0:00:54]} 19. exf6 {[%clk 0:00:56]}  Nf5 {[%clk 0:00:55]} 20. Qg5 {[%clk 0:00:47]}  Qb6 {[%clk 0:00:43]} 21. h5 {[%clk 0:00:41]} 1-0


[Site "https://www.chess.com"]

[Event "Titled Tuesday Blitz June 6 Early 2023"]
[White "Ahmadzada, Ahmad"]
[Black "Martinez Alcantara, Jose Eduardo"]
[WhiteFideId "13413007"]
[BlackFideId "3805662"]
[WhiteElo "2388"]
[BlackElo "2711"]
[Result "0-1"]
[Round "4"]
[TimeControl "180+2"]
[Date "2023.06.06"]
[WhiteClock "0:00:03"]
[BlackClock "0:00:07"]
[Board "3"]

1. Nf3 {[%clk 0:03:00]}  c5 {[%clk 0:02:58]} 2. g3 {[%clk 0:03:01]}  Nc6 {[%clk 0:02:59]} 3. Bg2 {[%clk 0:03:01]}  g6 {[%clk 0:02:59]} 4. O-O {[%clk 0:03:02]}  Bg7 {[%clk 0:03:00]} 5. c4 {[%clk 0:03:01]}  d6 {[%clk 0:03:00]} 6. Nc3 {[%clk 0:03:00]}  e6 {[%clk 0:03:01]} 7. d3 {[%clk 0:02:56]}  Nge7 {[%clk 0:03:01]} 8. Bd2 {[%clk 0:02:56]}  h6 {[%clk 0:02:58]} 9. a3 {[%clk 0:02:56]}  O-O {[%clk 0:02:58]} 10. Rb1 {[%clk 0:02:56]}  b6 {[%clk 0:02:57]} 11. b4 {[%clk 0:02:56]}  Bb7 {[%clk 0:02:54]} 12. Qc1 {[%clk 0:02:54]}  Kh7 {[%clk 0:02:52]} 13. b5 {[%clk 0:02:52]}  Na5 {[%clk 0:02:48]} 14. e4 {[%clk 0:02:32]}  Rc8 {[%clk 0:02:34]} 15. Re1 {[%clk 0:02:28]}  d5 {[%clk 0:02:32]} 16. exd5 {[%clk 0:02:28]}  exd5 {[%clk 0:02:33]} 17. cxd5 {[%clk 0:02:15]}  Nxd5 {[%clk 0:02:30]} 18. Ne4 {[%clk 0:02:15]}  c4 {[%clk 0:02:25]} 19. Bxa5 {[%clk 0:02:01]}  cxd3 {[%clk 0:02:23]} 20. Qd2 {[%clk 0:01:48]}  bxa5 {[%clk 0:02:23]} 21. Qxd3 {[%clk 0:01:49]}  Qb6 {[%clk 0:01:52]} 22. Rbc1 {[%clk 0:01:26]}  Rxc1 {[%clk 0:01:31]} 23. Rxc1 {[%clk 0:01:25]}  Rd8 {[%clk 0:01:32]} 24. Rd1 {[%clk 0:01:18]}  Kg8 {[%clk 0:01:02]} 25. h4 {[%clk 0:01:12]}  Re8 {[%clk 0:00:58]} 26. h5 {[%clk 0:01:07]}  Nf4 {[%clk 0:00:51]} 27. gxf4 {[%clk 0:00:53]}  Bxe4 {[%clk 0:00:51]} 28. Qd7 {[%clk 0:00:53]}  Rf8 {[%clk 0:00:46]} 29. Ne5 {[%clk 0:00:49]}  Bf5 {[%clk 0:00:29]} 30. Qc6 {[%clk 0:00:49]}  gxh5 {[%clk 0:00:29]} 31. Bd5 {[%clk 0:00:47]}  Bxe5 {[%clk 0:00:17]} 32. fxe5 {[%clk 0:00:46]}  Kg7 {[%clk 0:00:17]} 33. Rc1 {[%clk 0:00:31]}  Rc8 {[%clk 0:00:15]} 34. Qf6+ {[%clk 0:00:15]}  Qxf6 {[%clk 0:00:14]} 35. exf6+ {[%clk 0:00:16]}  Kxf6 {[%clk 0:00:15]} 36. Bc6 {[%clk 0:00:15]}  Be6 {[%clk 0:00:14]} 37. Rc5 {[%clk 0:00:15]}  h4 {[%clk 0:00:08]} 38. Rh5 {[%clk 0:00:07]}  h3 {[%clk 0:00:07]} 39. Rxh6+ {[%clk 0:00:06]}  Ke5 {[%clk 0:00:08]} 40. Kh2 {[%clk 0:00:05]}  Rd8 {[%clk 0:00:08]} 41. Kg3 {[%clk 0:00:05]}  Rd3+ {[%clk 0:00:08]} 42. f3 {[%clk 0:00:05]}  Rxa3 {[%clk 0:00:09]} 43. Rh8 {[%clk 0:00:03]}  Ra2 {[%clk 0:00:06]} 44. f4+ {[%clk 0:00:03]}  Kf6 {[%clk 0:00:06]} 45. Rh6+ {[%clk 0:00:03]}  Kg7 {[%clk 0:00:06]} 46. Rh5 {[%clk 0:00:04]}  Kg6 {[%clk 0:00:05]} 47. Rg5+ {[%clk 0:00:04]}  Kf6 {[%clk 0:00:05]} 48. Rc5 {[%clk 0:00:05]}  a4 {[%clk 0:00:05]} 49. Be4 {[%clk 0:00:03]}  a3 {[%clk 0:00:05]} 50. f5 {[%clk 0:00:03]}  Bb3 {[%clk 0:00:05]} 51. Kxh3 {[%clk 0:00:03]}  Re2 {[%clk 0:00:04]} 52. Bf3 {[%clk 0:00:01]}  Re3 {[%clk 0:00:04]} 53. Kg2 {[%clk 0:00:01]}  a2 {[%clk 0:00:05]} 54. Rc1 {[%clk 0:00:01]}  Kxf5 {[%clk 0:00:05]} 55. Ra1 {[%clk 0:00:02]}  Kf4 {[%clk 0:00:05]} 56. Bc6 {[%clk 0:00:02]}  Rc3 {[%clk 0:00:06]} 57. Kf2 {[%clk 0:00:02]}  Rc2+ {[%clk 0:00:06]} 58. Ke1 {[%clk 0:00:03]}  Rb2 {[%clk 0:00:07]} 0-1


[Site "https://www.chess.com"]

[Event "Titled Tuesday Blitz June 6 Early 2023"]
[White "Paravyan, David"]
[Black "Galchenko, Matvey"]
[WhiteFideId "4194985"]
[BlackFideId "24175480"]
[WhiteElo "2563"]
[BlackElo "2423"]
[Result "1-0"]
[Round "4"]
[TimeControl "180+2"]
[Date "2023.06.06"]
[WhiteClock "0:00:07"]
[BlackClock "0:00:01"]
[Board "6"]

1. d4 {[%clk 0:02:59]}  d5 {[%clk 0:02:58]} 2. c4 {[%clk 0:03:00]}  e6 {[%clk 0:02:58]} 3. Nc3 {[%clk 0:02:59]}  c6 {[%clk 0:02:58]} 4. e3 {[%clk 0:02:57]}  f5 {[%clk 0:02:58]} 5. f4 {[%clk 0:02:55]}  Nf6 {[%clk 0:02:57]} 6. Nf3 {[%clk 0:02:55]}  Be7 {[%clk 0:02:57]} 7. Bd3 {[%clk 0:02:55]}  O-O {[%clk 0:02:57]} 8. O-O {[%clk 0:02:56]}  b6 {[%clk 0:02:57]} 9. Ne5 {[%clk 0:02:51]}  Ne4 {[%clk 0:02:47]} 10. Nxe4 {[%clk 0:02:47]}  fxe4 {[%clk 0:02:46]} 11. Bc2 {[%clk 0:02:47]}  Bb7 {[%clk 0:02:45]} 12. Qg4 {[%clk 0:02:47]}  Rf6 {[%clk 0:02:40]} 13. Bd2 {[%clk 0:02:40]}  Nd7 {[%clk 0:02:31]} 14. cxd5 {[%clk 0:02:40]}  cxd5 {[%clk 0:02:22]} 15. Rac1 {[%clk 0:02:14]}  Rc8 {[%clk 0:02:17]} 16. Ba4 {[%clk 0:02:12]}  Rxc1 {[%clk 0:02:06]} 17. Rxc1 {[%clk 0:02:10]}  Nxe5 {[%clk 0:02:06]} 18. fxe5 {[%clk 0:02:05]}  Rg6 {[%clk 0:01:52]} 19. Qe2 {[%clk 0:01:59]}  a6 {[%clk 0:01:13]} 20. a3 {[%clk 0:01:57]}  b5 {[%clk 0:01:08]} 21. Bb3 {[%clk 0:01:57]}  h6 {[%clk 0:01:03]} 22. Bb4 {[%clk 0:01:51]}  Bxb4 {[%clk 0:00:32]} 23. axb4 {[%clk 0:01:52]}  Bc8 {[%clk 0:00:33]} 24. Rc6 {[%clk 0:01:35]}  Bd7 {[%clk 0:00:33]} 25. Rd6 {[%clk 0:01:33]}  Qc7 {[%clk 0:00:28]} 26. Qd2 {[%clk 0:01:29]}  Kh7 {[%clk 0:00:27]} 27. Bd1 {[%clk 0:01:08]}  Rg5 {[%clk 0:00:20]} 28. h4 {[%clk 0:00:50]}  Rf5 {[%clk 0:00:21]} 29. Bg4 {[%clk 0:00:51]}  Rf8 {[%clk 0:00:21]} 30. Qc3 {[%clk 0:00:39]}  Qb7 {[%clk 0:00:06]} 31. Kh2 {[%clk 0:00:25]}  Bc8 {[%clk 0:00:06]} 32. Kg3 {[%clk 0:00:22]}  Qf7 {[%clk 0:00:05]} 33. Qe1 {[%clk 0:00:21]}  Qg6 {[%clk 0:00:05]} 34. Kh3 {[%clk 0:00:16]}  h5 {[%clk 0:00:04]} 35. Be2 {[%clk 0:00:15]}  Qf5+ {[%clk 0:00:05]} 36. Kh2 {[%clk 0:00:15]}  g5 {[%clk 0:00:03]} 37. hxg5 {[%clk 0:00:13]}  Qxg5 {[%clk 0:00:04]} 38. Qg3 {[%clk 0:00:14]}  Qxg3+ {[%clk 0:00:02]} 39. Kxg3 {[%clk 0:00:14]}  Kg6 {[%clk 0:00:03]} 40. Kh4 {[%clk 0:00:10]}  Kh6 {[%clk 0:00:01]} 41. Bxh5 {[%clk 0:00:09]}  Rf2 {[%clk 0:00:02]} 42. g4 {[%clk 0:00:10]}  Rxb2 {[%clk 0:00:02]} 43. g5+ {[%clk 0:00:10]}  Kg7 {[%clk 0:00:03]} 44. Rc6 {[%clk 0:00:10]}  Rh2+ {[%clk 0:00:02]} 45. Kg4 {[%clk 0:00:11]}  Rg2+ {[%clk 0:00:02]} 46. Kf4 {[%clk 0:00:11]}  Rf2+ {[%clk 0:00:02]} 47. Kg3 {[%clk 0:00:12]}  Rf8 {[%clk 0:00:03]} 48. Rc7+ {[%clk 0:00:12]}  Kg8 {[%clk 0:00:04]} 49. Bg6 {[%clk 0:00:12]}  Rd8 {[%clk 0:00:02]} 50. Bh7+ {[%clk 0:00:11]}  Kh8 {[%clk 0:00:02]} 51. g6 {[%clk 0:00:10]}  Bd7 {[%clk 0:00:03]} 52. Kf4 {[%clk 0:00:07]}  Rf8+ {[%clk 0:00:02]} 53. Kg5 {[%clk 0:00:07]}  Rd8 {[%clk 0:00:01]} 54. Kh6 {[%clk 0:00:07]} 1-0


[Site "https://www.chess.com"]

[Event "Titled Tuesday Blitz June 6 Early 2023"]
[White "Yeletsky, Ivan"]
[Black "Pranesh M"]
[WhiteFideId "24180327"]
[BlackFideId "35028600"]
[WhiteElo "2380"]
[BlackElo "2437"]
[Result "0-1"]
[Round "4"]
[TimeControl "180+2"]
[Date "2023.06.06"]
[WhiteClock "0:00:01"]
[BlackClock "0:00:09"]
[Board "10"]

1. e4 {[%clk 0:03:00]}  c5 {[%clk 0:02:57]} 2. Nf3 {[%clk 0:03:00]}  Nc6 {[%clk 0:02:57]} 3. Nc3 {[%clk 0:02:58]}  d6 {[%clk 0:02:58]} 4. d4 {[%clk 0:02:55]}  cxd4 {[%clk 0:02:59]} 5. Nxd4 {[%clk 0:02:55]}  Nf6 {[%clk 0:02:59]} 6. Bg5 {[%clk 0:02:55]}  Bd7 {[%clk 0:02:59]} 7. Bxf6 {[%clk 0:02:45]}  gxf6 {[%clk 0:02:57]} 8. Bc4 {[%clk 0:02:46]}  Rc8 {[%clk 0:02:56]} 9. Bb3 {[%clk 0:02:11]}  e6 {[%clk 0:02:54]} 10. Qd2 {[%clk 0:01:53]}  a6 {[%clk 0:02:40]} 11. O-O-O {[%clk 0:01:52]}  h5 {[%clk 0:02:40]} 12. Kb1 {[%clk 0:01:52]}  Na5 {[%clk 0:02:40]} 13. f4 {[%clk 0:01:50]}  b5 {[%clk 0:02:36]} 14. f5 {[%clk 0:01:42]}  e5 {[%clk 0:01:57]} 15. Nde2 {[%clk 0:01:27]}  Nxb3 {[%clk 0:01:41]} 16. cxb3 {[%clk 0:01:22]}  a5 {[%clk 0:01:36]} 17. Nd5 {[%clk 0:01:16]}  b4 {[%clk 0:01:35]} 18. Qd3 {[%clk 0:00:57]}  Rc5 {[%clk 0:01:34]} 19. Rc1 {[%clk 0:00:56]}  Bb5 {[%clk 0:01:25]} 20. Nc7+ {[%clk 0:00:47]}  Qxc7 {[%clk 0:01:23]} 21. Qxb5+ {[%clk 0:00:47]}  Rxb5 {[%clk 0:01:13]} 22. Rxc7 {[%clk 0:00:48]}  Rc5 {[%clk 0:01:12]} 23. Rc1 {[%clk 0:00:44]}  Rg8 {[%clk 0:01:06]} 24. Ng3 {[%clk 0:00:37]}  h4 {[%clk 0:00:47]} 25. Nh5 {[%clk 0:00:26]}  Rxc1+ {[%clk 0:00:47]} 26. Kxc1 {[%clk 0:00:26]}  Kd8 {[%clk 0:00:46]} 27. Rxf7 {[%clk 0:00:25]}  Bh6+ {[%clk 0:00:46]} 28. Kd1 {[%clk 0:00:22]}  Rxg2 {[%clk 0:00:47]} 29. Nxf6 {[%clk 0:00:22]}  Rxh2 {[%clk 0:00:34]} 30. Ng4 {[%clk 0:00:19]}  Rd2+ {[%clk 0:00:27]} 31. Ke1 {[%clk 0:00:19]}  Bf4 {[%clk 0:00:27]} 32. Rh7 {[%clk 0:00:16]}  Rd4 {[%clk 0:00:19]} 33. Nf6 {[%clk 0:00:11]}  d5 {[%clk 0:00:19]} 34. exd5 {[%clk 0:00:09]}  e4 {[%clk 0:00:20]} 35. d6 {[%clk 0:00:04]}  Bxd6 {[%clk 0:00:18]} 36. Rh8+ {[%clk 0:00:04]}  Ke7 {[%clk 0:00:17]} 37. Ng4 {[%clk 0:00:05]}  Bf4 {[%clk 0:00:15]} 38. Rh7+ {[%clk 0:00:06]}  Kf8 {[%clk 0:00:15]} 39. f6 {[%clk 0:00:04]}  e3 {[%clk 0:00:15]} 40. Ke2 {[%clk 0:00:03]}  Rd2+ {[%clk 0:00:16]} 41. Kf3 {[%clk 0:00:04]}  e2 {[%clk 0:00:17]} 42. Rh8+ {[%clk 0:00:02]}  Kf7 {[%clk 0:00:17]} 43. Rh7+ {[%clk 0:00:03]}  Kg8 {[%clk 0:00:14]} 44. Rg7+ {[%clk 0:00:02]}  Kf8 {[%clk 0:00:14]} 45. Re7 {[%clk 0:00:03]}  Bg3 {[%clk 0:00:11]} 46. Rxe2 {[%clk 0:00:03]}  Rd4 {[%clk 0:00:09]} 47. Nh6 {[%clk 0:00:02]}  Rf4+ {[%clk 0:00:10]} 48. Kg2 {[%clk 0:00:03]}  Rxf6 {[%clk 0:00:11]} 49. Ng4 {[%clk 0:00:03]}  Rc6 {[%clk 0:00:11]} 50. Kh3 {[%clk 0:00:02]}  Rc1 {[%clk 0:00:11]} 51. Ne3 {[%clk 0:00:02]}  Ra1 {[%clk 0:00:11]} 52. a3 {[%clk 0:00:02]}  bxa3 {[%clk 0:00:12]} 53. bxa3 {[%clk 0:00:03]}  Rxa3 {[%clk 0:00:13]} 54. Nd5 {[%clk 0:00:02]}  Rxb3 {[%clk 0:00:12]} 55. Kg4 {[%clk 0:00:02]}  a4 {[%clk 0:00:12]} 56. Ra2 {[%clk 0:00:03]}  a3 {[%clk 0:00:12]} 57. Re2 {[%clk 0:00:03]}  Rb2 {[%clk 0:00:11]} 58. Re4 {[%clk 0:00:03]}  a2 {[%clk 0:00:11]} 59. Ra4 {[%clk 0:00:04]}  Kf7 {[%clk 0:00:11]} 60. Kf5 {[%clk 0:00:04]}  Rf2+ {[%clk 0:00:09]} 61. Kg4 {[%clk 0:00:05]}  Be5 {[%clk 0:00:08]} 62. Ra7+ {[%clk 0:00:02]}  Ke6 {[%clk 0:00:09]} 63. Ne3 {[%clk 0:00:01]}  a1=Q {[%clk 0:00:09]} 0-1


[Site "https://www.chess.com"]

[Event "Titled Tuesday Blitz June 6 Early 2023"]
[White "Hambleton, Aman"]
[Black "Sjugirov, Sanan"]
[WhiteFideId "2606577"]
[BlackFideId "4189302"]
[WhiteElo "2511"]
[BlackElo "2569"]
[Result "1-0"]
[Round "4"]
[TimeControl "180+2"]
[Date "2023.06.06"]
[WhiteClock "0:00:03"]
[BlackClock "0:00:01"]
[Board "13"]

1. d4 {[%clk 0:03:00]}  Nf6 {[%clk 0:02:59]} 2. Bf4 {[%clk 0:02:58]}  d5 {[%clk 0:02:55]} 3. e3 {[%clk 0:02:58]}  c5 {[%clk 0:02:51]} 4. c3 {[%clk 0:02:57]}  Nc6 {[%clk 0:02:48]} 5. Nd2 {[%clk 0:02:57]}  Bf5 {[%clk 0:02:42]} 6. Qb3 {[%clk 0:02:54]}  Qc8 {[%clk 0:02:31]} 7. Ngf3 {[%clk 0:02:21]}  e6 {[%clk 0:02:25]} 8. Be2 {[%clk 0:02:17]}  c4 {[%clk 0:02:16]} 9. Qd1 {[%clk 0:02:17]}  h6 {[%clk 0:02:10]} 10. O-O {[%clk 0:02:16]}  Be7 {[%clk 0:02:10]} 11. Ne5 {[%clk 0:02:13]}  O-O {[%clk 0:02:06]} 12. Re1 {[%clk 0:01:54]}  Bh7 {[%clk 0:02:05]} 13. Bf3 {[%clk 0:01:37]}  Nxe5 {[%clk 0:01:45]} 14. Bxe5 {[%clk 0:01:01]}  Nd7 {[%clk 0:01:37]} 15. Bg3 {[%clk 0:01:00]}  f5 {[%clk 0:01:26]} 16. b3 {[%clk 0:00:45]}  b5 {[%clk 0:00:55]} 17. bxc4 {[%clk 0:00:11]}  bxc4 {[%clk 0:00:55]} 18. Qa4 {[%clk 0:00:11]}  g5 {[%clk 0:00:43]} 19. h3 {[%clk 0:00:02]}  Nb6 {[%clk 0:00:40]} 20. Qa5 {[%clk 0:00:02]}  Qd7 {[%clk 0:00:35]} 21. Be5 {[%clk 0:00:02]}  Bd6 {[%clk 0:00:22]} 22. Bxd6 {[%clk 0:00:02]}  Qxd6 {[%clk 0:00:23]} 23. g3 {[%clk 0:00:02]}  Kh8 {[%clk 0:00:16]} 24. Bg2 {[%clk 0:00:02]}  f4 {[%clk 0:00:16]} 25. exf4 {[%clk 0:00:02]}  gxf4 {[%clk 0:00:17]} 26. g4 {[%clk 0:00:03]}  f3 {[%clk 0:00:10]} 27. Nxf3 {[%clk 0:00:03]}  Qf4 {[%clk 0:00:11]} 28. Re3 {[%clk 0:00:01]}  h5 {[%clk 0:00:06]} 29. gxh5 {[%clk 0:00:01]}  Rg8 {[%clk 0:00:06]} 30. Kf1 {[%clk 0:00:01]}  Be4 {[%clk 0:00:04]} 31. Bh1 {[%clk 0:00:02]}  Raf8 {[%clk 0:00:03]} 32. Qxa7 {[%clk 0:00:02]}  Nc8 {[%clk 0:00:02]} 33. Qd7 {[%clk 0:00:02]}  Bd3+ {[%clk 0:00:02]} 34. Ke1 {[%clk 0:00:02]}  Qf5 {[%clk 0:00:02]} 35. Qc7 {[%clk 0:00:02]}  Qxh3 {[%clk 0:00:02]} 36. Qe5+ {[%clk 0:00:03]}  Kh7 {[%clk 0:00:02]} 37. Kd2 {[%clk 0:00:03]}  Rf5 {[%clk 0:00:01]} 38. Qc7+ {[%clk 0:00:03]}  Rg7 {[%clk 0:00:01]} 39. Qxc8 {[%clk 0:00:03]} 1-0


[Site "https://www.chess.com"]